[Event "FIDE Candidates 2026"]
[White "Bluebaum,Matthias"]
[Black "Nakamura,Hikaru"]
[Site "Agios Georgios Pegeia"]
[Round "7.3"]
[Annotator "TA"]
[Result "1/2-1/2"]
[Date "2026.04.05"]
[WhiteElo "2698"]
[BlackElo "2810"]
[PlyCount "80"]
[TimeControl "60"]

{[%evp 20,80,21,11,17,19,16,18,13,13,16,6,18,13,12,12,23,5,4,0,0,0,0,0,52,49,50,50,51,51,51,52,53,52,53,56,61,51,47,46,59,59,60,58,66,54,68,39,39,37,64,52,71,47,39,8,5,8,8,8,2,3,11]} 1. d4 {[%emt 0:0:4]} d5 {[%emt 0:0:7]} 2. c4 {[%emt 0:0:5]} e6 {[%emt 0:0:4]} 3. Nf3 {[%emt 0:0:11]} Nf6 {[%emt 0:0:7]} 4. Nc3 {[%emt 0:0:4]} h6 {[%emt 0:0:12]} 5. a3 {[%emt 0:0:24]} c6 {[%emt 0:0:24]} 6. e3 {[%emt 0:0:10]} Nbd7 {[%emt 0:0:14]} 7. Bd3 {[%emt 0:0:6][%cal Bf1d3,Bd3e4,Be4c2][%mdl 32]} Bd6 {[%emt 0:0:5]} 8. e4 {[%emt 0:0:10]} dxe4 {[%emt 0:0:32]} 9. Nxe4 {[%emt 0:0:6]} Nxe4 {[%emt 0:0:4]} 10. Bxe4 {[%emt 0:0:6]} O-O {[%emt 0:0:16]} 11. O-O {[%emt 0:0:8]} e5 {[%emt 0:0:4] D46: Semi-Slav: 5 e3 Nbd7 6 Bd3, Black avoids the Meran.} 12. Bc2 {[%emt 0:0:16]} Bc7 {[%emt 0:33:15]} 13. Re1 {[%emt 0:0:20]} exd4 {[%emt 0:4:41]} 14. Qxd4 {[%emt 0:0:15]} Ne5 {[%emt 0:20:19]} 15. Qe4 {[%emt 0:0:15][%csl Gc2][%cal Re4h7] [#]} Nxf3+ {[%emt 0:0:17]} 16. Kh1 $146 {[%emt 0:0:12]} ({Predecessor:} 16. Qxf3 Qh4 17. h3 f5 18. b4 Bd7 19. Bb2 Rae8 20. c5 Qf4 21. Bb3+ Kh7 22. Qxf4 Bxf4 {1-0 Aradhya,G (2202)-Ghosh,D (2469) IND-ch Rapid 2025 (5)} )g6 {[%emt 0:5:47]} 17. Qxf3 {[%emt 0:0:37]} Qh4 {[%emt 0:0:2][%csl Gc7,LRc4,LRh2][%cal Rh4h2]} 18. h3 {[%emt 0:2:19] Active counter play!} Bd7 {[%emt 0:0:37]} 19. Be3 {[%emt 0:1:52][%cal Bc1e3,Be3a7,Ba7b6,Bb6c7,Bc7e5][%mdl 32]} Rfe8 {[%emt 0:4:19]} 20. Rad1 {[%emt 0:2:48]} Rad8 {[%emt 0:0:24]} 21. Bxa7 {[%emt 0:4:7]} Qxc4 {[%emt 0:5:27]} ({Better is} 21... Rxe1+ $11 22. Rxe1 Be6 (22... Qxc4 23. Bb6 $16 ))22. Bb6 $14 {[%emt 0:7:7]} Rxe1+ {[%emt 0:2:36]} 23. Rxe1 {[%emt 0:0:4]} Qxc2 {[%emt 0:0:5]} 24. Bxc7 {[%emt 0:0:4]} Re8 {[%emt 0:1:38]} 25. Rxe8+ {[%emt 0:7:56]} Bxe8 {[%emt 0:0:1][%mdl 4096] Endgame KQB-KQB} 26. Be5 {[%emt 0:4:32] Repels Qxb2} Qb1+ {[%emt 0:4:1]} 27. Kh2 {[%emt 0:0:14]} Qf5 {[%emt 0:0:2]} 28. Qe3 {[%emt 0:2:0]} Qe6 {[%emt 0:1:48]} 29. Qd4 {[%emt 0:2:13]} g5 {[%emt 0:6:1]} 30. Bh8 {[%emt 0:3:16][%csl Gh8][%cal Rd4g7] [#]} Kf8 {[%emt 0:0:1]} 31. f4 {[%emt 0:6:24]} gxf4 {[%emt 0:2:4]} 32. Qxf4 {[%emt 0:3:11]} Ke7 {[%emt 0:0:27] Inhibits Bf6+.} 33. Bg7 {[%emt 0:5:35]} h5 {[%emt 0:5:16]} 34. Bc3 {[%emt 0:8:57]} Kd7 {[%emt 0:3:12]} 35. Kh1 {[%emt 0:10:36]} b5 {[%emt 0:5:58]} 36. Ba5 {[%emt 0:4:32][%csl Ga5][%cal Rf4c7]} Qd5 {[%emt 0:1:23]} 37. Qb8 {[%emt 0:1:47]} Qd1+ {[%emt 0:0:6] The position is equal.} 38. Kh2 {[%emt 0:0:3]} Qd6+ {[%emt 0:0:4]} 39. Qxd6+ {[%emt 0:0:3]} Kxd6 {[%emt 0:0:2]} 40. Kg3 {[%emt 0:0:0]} f6 {[%emt 0:0:0] Weighted Error Value: White=0.06 (flawless) /Black=0.05 (flawless)   Mistake:       	---       	Black=1      Inaccurate:     	White=2     	Black=1      OK:         	White=1     	Black=3} 1/2-1/2

[Event "FIDE Candidates 2026"]
[White "Esipenko,Andrey"]
[Black "Wei,Yi"]
[Site "Agios Georgios Pegeia"]
[Round "7.4"]
[Annotator "TA"]
[Result "0-1"]
[Date "2026.04.05"]
[WhiteElo "2698"]
[BlackElo "2754"]
[PlyCount "60"]
[TimeControl "60"]

{[%evp 9,60,1,7,-20,-16,-4,0,-5,0,8,11,9,4,6,21,5,18,6,4,-64,-68,-68,-73,-82,-66,-81,-104,-83,-108,-106,-100,-110,-103,-114,-108,-95,-70,-74,-75,-95,-53,-95,-100,-267,-272,-1290,-1288,-1457,-1457,-29990,-29991,-29992,-29993]} 1. e4 {[%emt 0:0:5]} e5 {[%emt 0:0:6]} 2. Nf3 {[%emt 0:0:6]} Nf6 {[%emt 0:0:9]} 3. d4 {[%emt 0:0:8]} (3. Nxe5 d6 4. Nf3 Nxe4 5. Nc3 Nxc3 6. dxc3 Be7 7. Bf4 Nc6 8. Qd2 Be6 9. O-O-O Qd7 10. Be2 O-O-O 11. Ng5 Bxg5 12. Bxg5 f6 13. Be3 h5 14. b3 Qf7 15. Bb5 Bd7 16. Rhe1 Rhe8 17. Kb2 a6 18. Bf1 {½-½ Esipenko,A (2681)-Wei,Y (2753) FIDE World Cup 2025 (7.2)} )Nxe4 {[%emt 0:0:15]} 4. Qe2 {[%emt 0:0:12]} d5 {[%emt 0:3:56]} 5. Nxe5 {[%emt 0:0:33]} Be7 {[%emt 0:11:52]} 6. f3 {[%emt 0:0:41] C43: Petroff Defence: 3 d4.} Nd6 {[%emt 0:2:25]} 7. Nc3 {[%emt 0:0:10]} Nf5 $146 {[%emt 0:8:7]} ({Predecessor:} 7... c6 8. Bf4 O-O 9. O-O-O Nd7 10. Nd3 a5 11. h4 b5 12. a3 Nc4 13. Qe1 b4 14. axb4 axb4 {0-1 Nguyen Thanh Tra,M-Dam,T VIE-ch U17 Girls 2005 (9)} )8. Qf2 {[%emt 0:1:0] The position is symmetric and equal. The position is equal.} O-O {[%emt 0:4:50][%cal Oc7c5] ...c5! would now be deadly.} 9. Bf4 {[%emt 0:0:37]} f6 {[%emt 0:6:58]} 10. Nd3 {[%emt 0:6:44]} Nc6 {[%emt 0:1:7]} 11. Ne2 $1 {[%emt 0:3:51]} Nb4 {[%emt 0:0:15]} 12. Nxb4 {[%emt 0:1:19]} Bxb4+ {[%emt 0:0:5]} 13. c3 {[%emt 0:0:7]} Bd6 {[%emt 0:0:4]} 14. Bd2 {[%emt 0:1:43]} (14. O-O-O $11 )Qe8 $15 {[%emt 0:3:24]} 15. Kd1 {[%emt 0:36:12]} Qa4+ {[%emt 0:5:33]} 16. Kc1 {[%emt 0:0:52]} b5 {[%emt 0:18:9] Black has more active pieces. The white rooks are passive.} 17. Nf4 {[%emt 0:11:6]} c5 {[%emt 0:6:6]} 18. Bd3 {[%emt 0:7:16]} cxd4 {[%emt 0:2:26]} 19. Bc2 {[%emt 0:1:18]} Qa6 {[%emt 0:0:13]} 20. cxd4 {[%emt 0:0:34]} Bd7 {[%emt 0:2:7]} 21. Kb1 {[%emt 0:10:59]} Rac8 {[%emt 0:2:59]} 22. Bd3 {[%emt 0:0:38]} Rc4 {[%emt 0:8:15]} 23. Ne2 {[%emt 0:1:34][%cal Oa2a3] [#]} Ne7 $1 {[%emt 0:10:58][%cal Oa6b6]} 24. g4 {[%emt 0:0:42][%cal Od2f4]} (24. a3 Qb6 )Rfc8 {[%emt 0:2:55]} 25. h4 {[%emt 0:1:48][%cal Oh4h5]} b4 $40 {[%emt 0:2:4][%mdl 128] White is in trouble.} 26. b3 $2 {[%emt 0:9:8] This costs White the game.} (26. Bf4 $17 {was the only chance.} )Bb5 $19 {[%emt 0:0:2]} 27. bxc4 {[%emt 0:4:29] [#]} (27. Qe3 R4c7 28. Bxb5 Qxb5 29. a4 bxa3 30. Rc1 )Bxc4 {[%emt 0:0:43]} 28. Bc2 {[%emt 0:6:25]} Bd3 {[%emt 0:0:6]} 29. Bc3 {[%emt 0:0:44]} bxc3 {[%emt 0:7:35]} 30. Nc1 {[%emt 0:4:8]} Rb8+ {[%emt 0:0:3] Weighted Error Value: White=0.66/Black=0.05 (flawless)   Loses game:     	White=1     	---        Mistake:       	White=2     	---        Inaccurate:     	White=1     	Black=1      OK:         	White=4     	Black=6      Best:        	White=1     	Black=1      Strong:       	White=1     	---} 0-1

[Event "FIDE Candidates 2026"]
[White "Esipenko,Andrey"]
[Black "Sindarov,Javokhir"]
[Site "Agios Georgios Pegeia"]
[Round "8.1"]
[Annotator "TA"]
[Result "1/2-1/2"]
[Date "2026.04.07"]
[WhiteElo "2698"]
[BlackElo "2745"]
[PlyCount "48"]
[TimeControl "60"]

{[%evp 10,47,29,29,35,28,32,32,31,30,27,18,45,39,39,32,35,31,47,40,45,33,51,51,51,51,45,37,50,56,49,50,80,14,10,0,66,0,15,0]} 1. c4 {[%emt 0:0:7]} e6 {[%emt 0:0:6]} 2. g3 {[%emt 0:0:6]} d5 {[%emt 0:0:6]} 3. Bg2 {[%emt 0:0:4]} Nf6 {[%emt 0:0:6]} 4. Nf3 {[%emt 0:0:7]} Bd6 {[%emt 0:0:14]} 5. O-O {[%emt 0:0:45]} O-O {[%emt 0:0:6]} 6. d4 {[%emt 0:0:19]} Nc6 {[%emt 0:0:7] D02: 1 d4 d5 2 Nf3 sidelines, including 2...Nf6 3 g3 and 2...Nf6 3 Bf4.} 7. e3 {[%emt 0:1:3]} Re8 {[%emt 0:0:10]} 8. Nbd2 {[%emt 0:25:24]} a5 $146 {[%emt 0:0:57][%cal Ba7a5,Ba5a4][%mdl 32] White is slightly better.} ({Predecessor:} 8... b6 9. b3 Qe7 10. a3 a5 11. Bb2 Bb7 12. Qc2 h6 13. Rfc1 Qd8 14. Ne5 Ne7 {1-0 Fischer,S (1927)-Frenzel,L (1609) GER OS-518 email 2024} )9. b3 {[%emt 0:1:20]} a4 {[%emt 0:2:3]} 10. Bb2 {[%emt 0:0:8]} Bb4 {[%emt 0:2:52]} 11. a3 {[%emt 0:6:38]} Bxd2 {[%emt 0:0:53]} 12. Nxd2 {[%emt 0:0:18][%cal Bf3d2,Bd2c4,Bc4a5][%mdl 32]} axb3 {[%emt 0:2:52]} 13. Qxb3 {[%emt 0:0:19]} Na5 {[%emt 0:0:10]} 14. Qc2 {[%emt 0:1:4]} Bd7 {[%emt 0:0:15]} 15. Rfc1 {[%emt 0:5:27]} dxc4 {[%emt 0:14:37]} 16. Nxc4 {[%emt 0:4:33]} Bc6 {[%emt 0:0:42]} 17. Nxa5 {[%emt 0:7:41]} Bxg2 {[%emt 0:0:36]} 18. Kxg2 {[%emt 0:0:5]} Qd5+ {[%emt 0:0:8]} 19. Kg1 {[%emt 0:0:30]} Rxa5 {[%emt 0:13:21]} 20. Qxc7 {[%emt 0:0:10]} h5 {[%emt 0:1:42][%cal Oh5h4]} 21. Qe5 {[%emt 0:24:40]} ({Better is} 21. Bc3 $16 Raa8 22. Be1 )Qd8 $11 {[%emt 0:1:14]} 22. Qc7 {[%emt 0:0:43]} (22. Rc8 $11 Qxc8 23. Qxa5 )Qd5 $14 {[%emt 0:0:3][%cal Oh5h4]} 23. Qe5 {[%emt 0:7:39]} (23. Bc3 $14 Raa8 24. Be1 )Qd8 $1 $11 {[%emt 0:0:11]} 24. Qc7 {[%emt 0:0:21]} Qd5 {[%emt 0:0:5] Weighted Error Value: White=0.14 (very precise) /Black=0.05 (flawless)   Mistake:       	White=3     	---        Inaccurate:     	---       	Black=2      OK:         	White=5     	Black=2      Best:        	---       	Black=2      Strong:       	---       	Black=1} 1/2-1/2

[Event "FIDE Candidates 2026"]
[White "Nakamura,Hikaru"]
[Black "Caruana,Fabiano"]
[Site "Agios Georgios Pegeia"]
[Round "8.2"]
[Annotator "TA"]
[Result "1-0"]
[Date "2026.04.07"]
[WhiteElo "2810"]
[BlackElo "2795"]
[PlyCount "133"]
[TimeControl "60"]

{[%evp 11,132,14,8,2,6,6,-4,-2,-4,0,8,8,8,8,5,1,8,0,4,4,4,7,4,0,11,0,14,13,15,15,17,18,37,36,18,17,27,36,35,24,35,35,49,48,53,61,143,145,151,10,152,128,135,100,126,153,153,137,137,137,112,79,116,108,192,176,189,189,203,186,282,282,282,282,282,282,690,690,656,633,1222,1109,1210,1179,1277,1277,193,59,1277,1270,1270,1270,1220,1174,1040,915,1075,1160,1218,1192,864,1149,1231,1156,1153,1143,971,390,1012,1006,1039,1025,1012,1005,1005,952,810,784,696,694,716,647,5193]} 1. c4 {[%emt 0:0:5]} c5 {[%emt 0:0:14]} 2. Nf3 {[%emt 0:0:15]} Nc6 {[%emt 0:0:40]} 3. d4 {[%emt 0:0:5]} cxd4 {[%emt 0:0:11]} 4. Nxd4 {[%emt 0:0:6]} Nf6 {[%emt 0:1:0]} 5. Nc3 {[%emt 0:0:6]} e6 {[%emt 0:0:14]} 6. Bf4 {[%emt 0:0:13]} d5 {[%emt 0:7:3]} 7. cxd5 {[%emt 0:0:34] A33: Symmetrical English: 2 Nf3 Nf6 3 d4 cxd4 4 Nxd4 e6 5 Nc3 Nc6.} Nxd5 {[%emt 0:0:17]} 8. Nxc6 {[%emt 0:0:6]} bxc6 {[%emt 0:0:3]} 9. Bd2 {[%emt 0:0:7] The position is equal.} Bb4 {[%emt 0:2:48]} 10. Qa4 $5 {[%emt 0:2:7][%mdl 4] An interesting side line.} a5 $146 {[%emt 0:20:17]} ({Predecessor:} 10... Rb8 11. e4 Nxc3 12. bxc3 Ba5 13. Rd1 O-O 14. Be2 Qc7 15. O-O Bb7 16. g3 Rbd8 17. Qc4 Bb6 {½-½ Artemiev,V (2700)-Grischuk,A (2742) RUS-chT 29th 2022 (7.4)} )11. e4 {[%emt 0:1:15]} Nxc3 {[%emt 0:1:25]} 12. bxc3 {[%emt 0:0:2]} Be7 {[%emt 0:0:5]} 13. Be2 {[%emt 0:0:23]} O-O {[%emt 0:1:25]} 14. Bf4 {[%emt 0:1:2]} Ba6 {[%emt 0:9:22]} 15. Bxa6 {[%emt 0:1:37]} Rxa6 {[%emt 0:0:3]} 16. Rd1 {[%emt 0:0:5]} Qb6 {[%emt 0:15:59]} 17. O-O {[%emt 0:0:39]} Qb5 {[%emt 0:0:14]} 18. Qc2 {[%emt 0:0:2]} Bc5 {[%emt 0:0:50]} 19. c4 {[%emt 0:34:43]} Qb7 {[%emt 0:5:38]} 20. Be5 {[%emt 0:0:28]} Qe7 {[%emt 0:3:18]} 21. Qd3 {[%emt 0:3:30]} f6 {[%emt 0:17:19]} 22. Bd6 {[%emt 0:1:5]} Bxd6 {[%emt 0:0:4]} 23. Qxd6 {[%emt 0:0:4]} Qxd6 {[%emt 0:0:3]} 24. Rxd6 $14 {[%emt 0:0:2][%mdl 4096] Endgame KRR-KRR} Rb8 {[%emt 0:0:10] Dodges Rb1} 25. Rxe6 {[%emt 0:23:19]} Rb2 {[%emt 0:0:58]} 26. Re7 {[%emt 0:5:59]} Rab6 {[%emt 0:9:16][%cal Ob6b7]} 27. Ra7 {[%emt 0:13:12]} Rxa2 {[%emt 0:6:52]} 28. h3 {[%emt 0:0:17]} h5 {[%emt 0:2:2]} (28... Rd2 $14 )29. Rd1 $16 {[%emt 0:1:43]} Rbb2 {[%emt 0:0:4]} 30. Rd8+ {[%emt 0:1:18]} Kh7 {[%emt 0:0:3]} 31. Rdd7 {[%emt 0:0:4]} Rxf2 {[%emt 0:0:5]} 32. Rxg7+ {[%emt 0:0:3]} Kh8 {[%emt 0:0:6]} 33. Rh7+ {[%emt 0:4:37]} Kg8 {[%emt 0:0:3]} 34. Rag7+ {[%emt 0:0:35]} ({Stronger than} 34. Rxh5 Rxg2+ 35. Kh1 Rge2 )Kf8 {[%emt 0:0:2]} 35. Rf7+ {[%emt 0:0:4]} Kg8 {[%emt 0:1:6]} 36. Rhg7+ {[%emt 0:0:40]} Kh8 {[%emt 0:0:3]} 37. Rg6 {[%emt 0:1:13]} Rf4 {[%emt 0:3:24]} (37... Rfc2 $16 {keeps fighting.} 38. Rfxf6 Rxc4 39. Rxc6 Rxc6 40. Rxc6 Kg7 )38. Rfxf6 $18 {[%emt 0:10:20]} Rxf6 {[%emt 0:0:13]} 39. Rxf6 {[%emt 0:0:2] KR-KR. White is a pawn up.} Kg7 {[%emt 0:1:36]} 40. Rxc6 {[%emt 0:0:0]} Rc2 {[%emt 0:0:0]} (40... a4 $142 41. Ra6 Kf8 )41. Rc5 {[%emt 0:10:20]} Kg6 {[%emt 0:3:1]} 42. Rxa5 {[%emt 0:0:37]} Rxc4 {[%emt 0:0:4]} 43. Re5 {[%emt 0:0:2]} h4 $2 {[%emt 0:0:32] [#]} (43... Kf6 44. Rxh5 Rxe4 )44. Kf2 {[%emt 0:0:1]} Rc2+ {[%emt 0:0:22]} 45. Kf3 {[%emt 0:0:1]} Rc3+ {[%emt 0:0:4]} 46. Kg4 {[%emt 0:0:9]} Rg3+ {[%emt 0:0:4]} 47. Kxh4 {[%emt 0:0:3]} Rxg2 {[%emt 0:0:3]} 48. Rf5 {[%emt 0:0:4]} Rg1 {[%emt 0:5:53]} 49. Rf4 {[%emt 0:0:26]} (49. Rb5 $18 )Ra1 $2 {[%emt 0:0:21][%mdl 8192] Loses the game.} (49... Rb1 $14 50. Kg3 Rg1+ 51. Kf3 Rf1+ 52. Kg3 Rg1+ )50. Kg3 {[%emt 0:3:16]} Rg1+ {[%emt 0:0:51]} 51. Kf3 {[%emt 0:0:52]} Rf1+ {[%emt 0:0:12]} 52. Ke3 {[%emt 0:0:5]} Re1+ {[%emt 0:0:9]} 53. Kd4 {[%emt 0:1:38]} Ra1 {[%emt 0:0:9]} 54. Rf5 {[%emt 0:1:26]} Rh1 {[%emt 0:0:57]} 55. Rf3 {[%emt 0:0:4]} Ra1 {[%emt 0:0:18]} 56. h4 {[%emt 0:2:8]} Ra4+ {[%emt 0:0:5]} 57. Ke5 {[%emt 0:0:5]} Ra5+ {[%emt 0:0:6]} 58. Kf4 {[%emt 0:0:4]} Rh5 {[%emt 0:0:15]} 59. Kg4 {[%emt 0:2:42][%cal Of3f6] [#] Threatening mate with Rf6+!.} Re5 {[%emt 0:0:3]} 60. Rf4 {[%emt 0:0:5] White is clearly winning.} Kh6 {[%emt 0:0:7]} 61. Kf3 {[%emt 0:0:19]} Kg6 {[%emt 0:0:13]} 62. Ke3 {[%emt 0:2:43]} Ra5 {[%emt 0:0:5]} 63. Rg4+ {[%emt 0:1:0]} Kf6 {[%emt 0:0:5]} 64. Rg5 {[%emt 0:0:11]} Ra1 {[%emt 0:0:34]} 65. Rf5+ {[%emt 0:5:13]} Kg6 {[%emt 0:0:4]} 66. h5+ {[%emt 0:6:21]} Kh6 {[%emt 0:0:3]} 67. e5 {[%emt 0:0:56] Weighted Error Value: White=0.04 (flawless) /Black=0.50   Mistake:       	---       	Black=4      OK:         	White=4     	Black=2} 1-0

[Event "FIDE Candidates 2026"]
[White "Giri,Anish"]
[Black "Praggnanandhaa R"]
[Site "Agios Georgios Pegeia"]
[Round "8.3"]
[Annotator "TA"]
[Result "1-0"]
[Date "2026.04.07"]
[WhiteElo "2753"]
[BlackElo "2741"]
[PlyCount "87"]
[TimeControl "60"]

{[%evp 9,86,4,57,50,50,41,56,41,56,50,58,37,35,39,37,12,22,22,70,74,75,77,89,81,71,85,78,83,83,64,75,77,75,64,78,61,75,78,85,76,63,75,79,60,59,58,48,47,40,38,66,53,61,54,45,62,77,56,66,56,61,61,131,112,157,138,175,132,471,460,622,612,670,663,663,650,649,443,445]} 1. d4 {[%emt 0:0:2]} Nf6 {[%emt 0:0:41]} 2. c4 {[%emt 0:0:6]} e6 {[%emt 0:0:5]} 3. Nf3 {[%emt 0:0:3]} d5 {[%emt 0:0:9]} 4. Nc3 {[%emt 0:0:4]} dxc4 {[%emt 0:0:33]} 5. e4 {[%emt 0:0:8][%cal Be2e4,Be4e5][%mdl 32]} b5 {[%emt 0:0:6]} 6. e5 $1 $14 {[%emt 0:0:27] D24: Queen's Gambit Accepted: 3 Nf3 Nf6 4 Nc3.} Nd5 {[%emt 0:0:20]} 7. Nxb5 {[%emt 0:0:6]} Nb6 {[%emt 0:0:4]} 8. Be2 {[%emt 0:0:18] White is slightly better.} Be7 {[%emt 0:0:17]} 9. O-O {[%emt 0:0:28]} O-O {[%emt 0:0:25]} 10. a4 $5 {[%emt 0:3:38][%csl Oa7,Oc4,Oc7][%mdl 4] Black has weak pawns A promising side line.} Ba6 {[%emt 0:17:15]} 11. Na3 $146 {[%emt 0:2:55]} ({Predecessor:} 11. b3 cxb3 12. Qxb3 c6 13. Nc3 Bxe2 14. Nxe2 N8d7 15. Nf4 Nd5 16. Nxd5 cxd5 17. a5 {1-0 Tilicheev,V (2540)-Lagunow,R (2428) Pfalz op 10th 2019 (5)} )c5 {[%emt 0:4:39]} 12. a5 {[%emt 0:11:4]} Nd5 {[%emt 0:1:34]} 13. Bxc4 {[%emt 0:17:40]} Qxa5 {[%emt 0:13:47]} (13... Bxc4 $11 14. Nxc4 Nc6 )14. Nc2 {[%emt 0:1:8]} Qb6 {[%emt 0:0:50]} 15. Bxd5 {[%emt 0:10:20]} exd5 {[%emt 0:0:14]} 16. Re1 {[%emt 0:0:57]} Bb7 {[%emt 0:28:48]} 17. Bg5 {[%emt 0:2:57]} Bxg5 {[%emt 0:7:53]} 18. Nxg5 {[%emt 0:0:25]} h6 {[%emt 0:0:5]} 19. dxc5 {[%emt 0:13:59][%csl Oc5] White has a strong passed pawn} Qxc5 {[%emt 0:0:8]} 20. Nf3 {[%emt 0:1:33]} Nc6 {[%emt 0:0:32]} 21. Ncd4 {[%emt 0:1:42]} Nxd4 {[%emt 0:0:47]} 22. Nxd4 {[%emt 0:0:6]} ({Much weaker is} 22. Qxd4 Rfc8 $11 )Bc8 {[%emt 0:0:31]} 23. Qd2 {[%emt 0:9:14] White is much more active. The black rooks are passive.} Rb8 {[%emt 0:3:36]} 24. Rec1 {[%emt 0:7:27]} Qb6 {[%emt 0:1:55]} 25. b3 {[%emt 0:3:2]} Bd7 {[%emt 0:1:37] Dodges Rc6} 26. h3 {[%emt 0:1:9]} Rfc8 {[%emt 0:2:52]} 27. Rd1 {[%emt 0:3:10]} Rc5 {[%emt 0:1:6]} 28. Kh2 {[%emt 0:0:19]} a5 {[%emt 0:2:14]} 29. f4 {[%emt 0:0:11][%cal Bf2f4,Bf4e5,Be5e6,Be6e7][%mdl 32]} f6 {[%emt 0:4:8]} 30. Re1 {[%emt 0:2:53]} Re8 {[%emt 0:8:11]} 31. Re2 {[%emt 0:2:58]} fxe5 {[%emt 0:2:2]} 32. fxe5 {[%emt 0:0:5]} Qc7 {[%emt 0:5:4]} 33. Rae1 {[%emt 0:0:45]} a4 {[%emt 0:0:16]} 34. bxa4 {[%emt 0:0:43]} Bxa4 {[%emt 0:0:10][%cal Bd7a4,Ba4c2,Bc2e4][%mdl 32]} 35. Kh1 {[%emt 0:0:6]} Qf7 {[%emt 0:1:58]} (35... Bb5 $14 36. Re3 Ba4 )36. e6 $16 {[%emt 0:2:36]} Qg6 {[%emt 0:0:7]} 37. Rf2 {[%emt 0:2:58]} Rc4 {[%emt 0:1:42]} 38. Rf4 {[%emt 0:2:21]} h5 $2 {[%emt 0:1:41][%mdl 8192] [#] This move loses the game for Black.} (38... Kh7 $16 39. e7 Qg5 )39. Qf2 $18 {[%emt 0:1:58] White is clearly winning.} Bc2 {[%emt 0:0:51]} 40. e7 {[%emt 0:0:0]} Be4 {[%emt 0:0:0]} 41. Rf8+ {[%emt 0:13:42]} Kh7 {[%emt 0:0:53]} 42. Rxe8 {[%emt 0:0:6]} Qxe8 {[%emt 0:0:16]} 43. Rxe4 {[%emt 0:3:41]} dxe4 {[%emt 0:3:10]} 44. Qf5+ {[%emt 0:3:34] Weighted Error Value: White=0.13 (very precise) /Black=0.32   Loses game:     	---       	Black=1      Mistake:       	---       	Black=2      Inaccurate:     	---       	Black=3      OK:         	White=8     	Black=4      Best:        	---       	Black=1} 1-0